fUST/lending_fUST_20250227
["ID","MTS","AMOUNT","RATE_DAILY","PERIOD"]
[354731742,1740649834733,-500.0,0.00047123,120]
[354731743,1740649834743,-500.0,0.00047123,120]
[354731744,1740649834752,-500.0,0.00047123,120]
[354731745,1740649834762,-4237.99,0.00047123,120]
[354731746,1740649834771,-592.68,0.00047123,120]
[354731747,1740649834780,-500.0,0.00047123,120]
[354731748,1740649834790,-1161.12,0.00047123,120]
[354731749,1740649834800,-500.0,0.00047123,120]
[354731750,1740649834809,-500.0,0.00047123,120]
[354731751,1740649834818,-4113.94,0.00047123,120]
[354731752,1740649834827,-15800.39216194,0.00047123,7]
[354731762,1740649838223,-500.0,0.00046575,120]
[354731763,1740649838232,-8791.18783806,0.00047123,7]
[354731764,1740649838241,-500.0,0.00047123,120]
[354731765,1740649838250,-500.0,0.00047123,120]
[354731766,1740649838259,-500.0,0.00047123,120]
[354731767,1740649838268,-527.58,0.00047123,120]
[354731768,1740649838278,-500.0,0.00047123,120]
[354731769,1740649838287,-1035.38,0.00047123,120]
[354731770,1740649838296,-500.0,0.00047123,120]
[354731771,1740649838305,-2928.1,0.00047123,120]
[354731772,1740649838314,-1227.17,0.00047123,120]
[354731773,1740649838324,-649.66,0.00047397,120]
[354731774,1740649838333,-500.0,0.00047397,120]
[354731775,1740649838342,-500.0,0.00047397,120]
[354731776,1740649838351,-500.0,0.00047397,120]
[354731777,1740649838360,-500.0,0.00047397,120]
[354731778,1740649838370,-500.0,0.00047397,120]
[354731779,1740649838379,-372.92,0.00047397,120]
[354731780,1740649838388,-500.0,0.00047397,120]
[354731781,1740649838397,-500.0,0.00047397,120]
[354731782,1740649838407,-601.59,0.00047397,120]
[354731783,1740649838415,-500.0,0.00047397,120]
[354731784,1740649838424,-500.0,0.00047397,120]
[354731785,1740649838434,-500.0,0.00047397,120]
[354731786,1740649838443,-500.0,0.00047397,120]
[354731787,1740649838452,-500.0,0.00047397,120]
[354731788,1740649838461,-2763.17,0.00047397,120]
[354731789,1740649838471,-506.23,0.00047397,120]
[354731790,1740649838481,-500.0,0.00047397,120]
[354731791,1740649838490,-500.0,0.00047397,120]
[354731792,1740649838499,-2068.77,0.00047397,120]
[354731793,1740649838508,-1028.38,0.00047397,120]
[354731794,1740649838517,-670.48,0.00047397,120]
[354731795,1740649838527,-999.77,0.00047397,120]
[354731796,1740649838536,-500.0,0.00047397,120]
[354731797,1740649838545,-500.0,0.00047397,120]
[354731798,1740649838554,-558.29,0.00047397,120]
[354731799,1740649838563,-500.0,0.00047397,120]
[354731800,1740649838573,-500.0,0.00047397,120]
[354731801,1740649838582,-372.89492372,0.00047397,120]
[354731802,1740649838591,-500.0,0.00047397,120]
[354731803,1740649838602,-500.0,0.00047397,120]
[354731804,1740649838611,-500.0,0.00047397,120]
[354731805,1740649838620,-500.0,0.00047397,120]
[354731806,1740649838630,-500.0,0.00047397,120]
[354731807,1740649838640,-3230.55,0.00047397,6]
[354731808,1740649838649,-675.26,0.00047397,120]
[354731809,1740649838658,-500.0,0.00047397,120]
[354731810,1740649838667,-500.0,0.00047397,120]
[354731811,1740649838676,-508.01,0.00047397,120]
[354731812,1740649838685,-500.0,0.00047397,120]
[354731813,1740649838694,-4237.99,0.00047397,120]
[354731814,1740649838703,-500.0,0.00047397,120]
[354731815,1740649838712,-1161.12,0.00047397,120]
[354731816,1740649838721,-500.0,0.00047397,120]
[354731817,1740649838730,-500.0,0.00047397,120]
[354731818,1740649838739,-4113.94,0.00047397,120]
[354731819,1740649838748,-24591.58,0.00047397,7]
[354731820,1740649838757,-500.0,0.00047397,120]
[354731821,1740649838767,-500.0,0.00047397,120]
[354731822,1740649838776,-500.0,0.00047397,120]
[354731823,1740649838785,-527.58,0.00047397,120]
[354731824,1740649838794,-500.0,0.00047397,120]
[354731825,1740649838804,-1035.38,0.00047397,120]
[354731826,1740649838813,-500.0,0.00047397,120]
[354731827,1740649838822,-2928.1,0.00047397,120]
[354731828,1740649838831,-1227.17,0.00047397,120]
[354731829,1740649838840,-500.0,0.00047554,10]
[354731830,1740649838852,-232.13,0.00047671,120]
[354731831,1740649838861,-500.0,0.00047671,120]
[354731832,1740649838870,-500.0,0.00047671,120]
[354731833,1740649838879,-500.0,0.00047671,120]
[354731834,1740649838889,-500.0,0.00047671,120]
[354731835,1740649838898,-500.0,0.00047671,120]
[354731836,1740649839031,-500.0,0.00047671,120]
[354731837,1740649839041,-500.0,0.00047671,120]
[354731838,1740649839051,-253.88,0.00047671,120]
[354731839,1740649839060,-500.0,0.00047671,120]
[354731840,1740649839069,-500.0,0.00047671,120]
[354731841,1740649839078,-500.0,0.00047671,120]
[354731842,1740649839087,-2763.17,0.00047671,120]
[354731843,1740649839097,-506.23,0.00047671,120]
[354731844,1740649839106,-500.0,0.00047671,120]
[354731845,1740649839115,-500.0,0.00047671,120]
[354731846,1740649839124,-2068.77,0.00047671,120]
[354731847,1740649839133,-1028.38,0.00047671,120]
[354731848,1740649839142,-670.48,0.00047671,120]
[354731849,1740649839153,-999.77,0.00047671,120]
[354731850,1740649839162,-500.0,0.00047671,120]
[354731851,1740649839171,-500.0,0.00047671,120]
[354731852,1740649839180,-558.29,0.00047671,120]
[354731853,1740649839189,-500.0,0.00047671,120]
[354731854,1740649839198,-500.0,0.00047671,120]
[354731855,1740649839211,-500.0,0.00047671,120]
[354731856,1740649839220,-500.0,0.00047671,120]
[354731857,1740649839229,-500.0,0.00047671,120]
[354731858,1740649839238,-500.0,0.00047671,120]
[354731859,1740649839247,-500.0,0.00047671,120]
[354731860,1740649839258,-3230.55,0.00047671,6]
[354731861,1740649839267,-675.26,0.00047671,120]
[354731862,1740649839276,-500.0,0.00047671,120]
[354731863,1740649839286,-500.0,0.00047671,120]
[354731864,1740649839296,-610.11,0.00047671,120]
[354731865,1740649839305,-4237.99,0.00047671,120]
[354731866,1740649839315,-500.0,0.00047671,120]
[354731867,1740649839325,-1161.12,0.00047671,120]
[354731868,1740649839337,-500.0,0.00047671,120]
[354731869,1740649839346,-500.0,0.00047671,120]
[354731870,1740649839355,-4113.94,0.00047671,120]
[354731871,1740649839364,-24591.58,0.00047671,7]
[354731872,1740649839373,-500.0,0.00047671,120]
[354731873,1740649839383,-500.0,0.00047671,120]
[354731874,1740649839394,-500.0,0.00047671,120]
[354731875,1740649839403,-527.58,0.00047671,120]
[354731876,1740649839412,-500.0,0.00047671,120]
[354731877,1740649839422,-1035.38,0.00047671,120]
[354731878,1740649839433,-587.8,0.00047671,120]
[354731879,1740649839442,-2928.1,0.00047671,120]
[354731880,1740649839453,-1227.17,0.00047671,120]
[354731881,1740649839462,-500.0,0.00047945,120]
[354731882,1740649839471,-500.0,0.00047945,120]
[354731883,1740649839481,-500.0,0.00047945,120]
[354731884,1740649839491,-500.0,0.00047945,120]
[354731885,1740649839501,-500.0,0.00047945,120]
[354731886,1740649839511,-512.84,0.00047945,120]
[354731887,1740649839520,-500.0,0.00047945,120]
[354731888,1740649839530,-500.0,0.00047945,120]
[354731889,1740649839539,-500.0,0.00047945,120]
[354731890,1740649839548,-500.0,0.00047945,120]
[354731891,1740649839557,-2763.17,0.00047945,120]
[354731892,1740649839566,-506.23,0.00047945,120]
[354731893,1740649839575,-500.0,0.00047945,120]
[354731894,1740649839584,-500.0,0.00047945,120]
[354731895,1740649839594,-2068.77,0.00047945,120]
[354731896,1740649839604,-1028.38,0.00047945,120]
[354731897,1740649839613,-670.48,0.00047945,120]
[354731898,1740649839623,-999.77,0.00047945,120]
[354731899,1740649839632,-500.0,0.00047945,120]
[354731900,1740649839641,-500.0,0.00047945,120]
[354731901,1740649839651,-558.29,0.00047945,120]
[354731902,1740649839660,-500.0,0.00047945,120]
[354731903,1740649839670,-500.0,0.00047945,120]
[354731904,1740649839679,-500.0,0.00047945,120]
[354731905,1740649839689,-500.0,0.00047945,120]
[354731906,1740649839698,-500.0,0.00047945,120]
[354731907,1740649839707,-500.0,0.00047945,120]
[354731908,1740649839716,-612.71,0.00047945,120]
[354731909,1740649839726,-3230.55,0.00047945,6]
[354731910,1740649839735,-675.26,0.00047945,120]
[354731911,1740649839745,-500.0,0.00047945,120]
[354731912,1740649839755,-500.0,0.00047945,120]
[354731913,1740649839765,-4237.99,0.00047945,120]
[354731914,1740649839775,-500.0,0.00047945,120]
[354731915,1740649839784,-1161.12,0.00047945,120]
[354731916,1740649839793,-500.0,0.00047945,120]
[354731917,1740649839803,-500.00096551,0.00047945,120]
[354731919,1740649839812,-4113.94,0.00047945,120]
[354731920,1740649839822,-24591.58,0.00047945,7]
[354731921,1740649839831,-500.0,0.00047945,120]
[354731922,1740649839841,-500.0,0.00047945,120]
[354731923,1740649839852,-372.59,0.00047945,120]
[354731924,1740649839861,-527.58,0.00047945,120]
[354731925,1740649839871,-500.0,0.00047945,120]
[354731926,1740649839881,-1035.38,0.00047945,120]
[354731927,1740649839890,-2928.1,0.00047945,120]
[354731928,1740649839900,-1227.17,0.00047945,120]
[354731929,1740649839909,-500.0,0.00048219,120]
[354731930,1740649839918,-500.0,0.00048219,120]
[354731932,1740649839927,-500.0,0.00048219,120]
[354731934,1740649839937,-500.0,0.00048219,120]
[354731936,1740649839948,-500.0,0.00048219,120]
[354731938,1740649839957,-500.0,0.00048219,120]
[354731940,1740649839968,-500.0,0.00048219,120]
[354731942,1740649839978,-500.0,0.00048219,120]
[354731944,1740649839987,-500.0,0.00048219,120]
[354731946,1740649839996,-2763.17,0.00048219,120]
[354731948,1740649840007,-506.23,0.00048219,120]
[354731951,1740649840017,-500.0,0.00048219,120]
[354731953,1740649840026,-500.0,0.00048219,120]
[354731955,1740649840035,-2068.77,0.00048219,120]
[354731957,1740649840046,-1028.38,0.00048219,120]
[354731959,1740649840055,-670.48,0.00048219,120]
[354731961,1740649840065,-999.77,0.00048219,120]
[354731962,1740649840074,-171.58,0.00048219,120]
[354731963,1740649840083,-500.0,0.00048219,120]
[354731964,1740649840094,-558.29,0.00048219,120]
[354731965,1740649840104,-500.0,0.00048219,120]
[354731966,1740649840113,-500.0,0.00048219,120]
[354731967,1740649840122,-227.77,0.00048219,120]
[354731968,1740649840132,-500.0,0.00048219,120]
[354731969,1740649840141,-456.85,0.00048219,120]
[354731970,1740649840150,-500.0,0.00048219,120]
[354731971,1740649840161,-3230.55,0.00048219,6]
[354731972,1740649840170,-675.26,0.00048219,120]
[354731973,1740649840179,-500.0,0.00048219,120]
[354731975,1740649840188,-500.0,0.00048219,120]
[354731977,1740649840197,-4237.99,0.00048219,120]
[354731979,1740649840207,-500.0,0.00048219,120]
[354731981,1740649840216,-1161.12,0.00048219,120]
[354731983,1740649840225,-500.0,0.00048219,120]
[354731985,1740649840234,-4113.94,0.00048219,120]
[354731987,1740649840243,-24591.58,0.00048219,7]
[354731989,1740649840252,-500.0,0.00048219,120]
[354731991,1740649840261,-500.0,0.00048219,120]
[354731993,1740649840270,-527.58,0.00048219,120]
[354731995,1740649840279,-500.0,0.00048219,120]
[354731997,1740649840288,-1035.38,0.00048219,120]
[354731999,1740649840297,-2928.1,0.00048219,120]
[354732001,1740649840306,-1227.17,0.00048219,120]
[354732003,1740649840315,-500.0,0.00048493,120]
[354732005,1740649840325,-500.0,0.00048493,120]
[354732007,1740649840334,-500.0,0.00048493,120]
[354732009,1740649840343,-500.0,0.00048493,120]
[354732011,1740649840353,-550.57,0.00048493,120]
[354732013,1740649840362,-500.0,0.00048493,120]
[354732015,1740649840371,-500.0,0.00048493,120]
[354732017,1740649840380,-500.0,0.00048493,120]
[354732019,1740649840389,-500.0,0.00048493,120]
[354732021,1740649840399,-2763.17,0.00048493,120]
[354732023,1740649840408,-506.23,0.00048493,120]
[354732025,1740649840418,-500.0,0.00048493,120]
[354732027,1740649840427,-500.0,0.00048493,120]
[354732029,1740649840437,-2068.77,0.00048493,120]
[354732031,1740649840446,-1028.38,0.00048493,120]
[354732033,1740649840456,-670.48,0.00048493,120]
[354732035,1740649840465,-999.77,0.00048493,120]
[354732037,1740649840474,-500.0,0.00048493,120]
[354732039,1740649840483,-558.29,0.00048493,120]
[354732041,1740649840493,-500.0,0.00048493,120]
[354732043,1740649840502,-500.0,0.00048493,120]
[354732045,1740649840512,-500.0,0.00048493,120]
[354732047,1740649840521,-500.0,0.00048493,120]
[354732049,1740649840531,-3230.55,0.00048493,6]
[354732051,1740649840540,-675.26,0.00048493,120]
[354732053,1740649840549,-500.0,0.00048493,120]
[354732055,1740649840558,-500.0,0.00048493,120]
[354732057,1740649840567,-4237.99,0.00048493,120]
[354732059,1740649840576,-500.0,0.00048493,120]
[354732061,1740649840585,-1161.12,0.00048493,120]
[354732063,1740649840594,-500.0,0.00048493,120]
[354732065,1740649840604,-4113.94,0.00048493,120]
[354732067,1740649840613,-24591.58,0.00048493,7]
[354732069,1740649840622,-500.0,0.00048493,120]
[354732071,1740649840632,-500.0,0.00048493,120]
[354732073,1740649840642,-527.58,0.00048493,120]
[354732075,1740649840651,-500.0,0.00048493,120]
[354732077,1740649840661,-1035.38,0.00048493,120]
[354732079,1740649840671,-2928.1,0.00048493,120]
[354732081,1740649840680,-1227.17,0.00048493,120]
[354732083,1740649840690,-500.0,0.00048767,120]
[354732085,1740649840702,-500.0,0.00048767,120]
[354732088,1740649840711,-500.0,0.00048767,120]
[354732090,1740649840720,-500.0,0.00048767,120]
[354732092,1740649840730,-220.85,0.00048767,120]
[354732094,1740649840739,-500.0,0.00048767,120]
[354732096,1740649840749,-500.0,0.00048767,120]
[354732098,1740649840759,-500.0,0.00048767,120]
[354732100,1740649840768,-2763.17,0.00048767,120]
[354732102,1740649840777,-506.23,0.00048767,120]
[354732104,1740649840787,-500.0,0.00048767,120]
[354732106,1740649840796,-500.0,0.00048767,120]
[354732108,1740649840806,-2068.77,0.00048767,120]
[354732110,1740649840815,-1028.38,0.00048767,120]
[354732112,1740649840824,-670.48,0.00048767,120]
[354732114,1740649840833,-999.77,0.00048767,120]
[354732116,1740649840842,-500.0,0.00048767,120]
[354732118,1740649840852,-558.29,0.00048767,120]
[354732120,1740649840860,-500.0,0.00048767,120]
[354732122,1740649840870,-500.0,0.00048767,120]
[354732124,1740649840879,-500.0,0.00048767,120]
[354732126,1740649840887,-500.0,0.00048767,120]
[354732128,1740649840897,-3230.55,0.00048767,6]
[354732130,1740649840906,-675.26,0.00048767,120]
[354732132,1740649840915,-500.0,0.00048767,120]
[354732134,1740649840924,-500.0,0.00048767,120]
[354732136,1740649840933,-4237.99,0.00048767,120]
[354732138,1740649840943,-500.0,0.00048767,120]
[354732140,1740649840955,-1161.12,0.00048767,120]
[354732141,1740649840965,-500.0,0.00048767,120]
[354732143,1740649840974,-4113.94,0.00048767,120]
[354732145,1740649840984,-24591.58,0.00048767,7]
[354732147,1740649840993,-500.0,0.00048767,120]
[354732149,1740649841003,-500.0,0.00048767,120]
[354732151,1740649841012,-527.58,0.00048767,120]
[354732153,1740649841021,-500.0,0.00048767,120]
[354732155,1740649841031,-1035.38,0.00048767,120]
[354732157,1740649841040,-2928.1,0.00048767,120]
[354732159,1740649841050,-1227.17,0.00048767,120]
[354732161,1740649841060,-4007.13,0.000488,30]
[354732163,1740649841069,-365.92423367,0.0004904,120]
[354732165,1740649841079,-361.88351658,0.0004904,31]
[354732167,1740649841088,-500.0,0.00049041,120]
[354732169,1740649841097,-543.71,0.00049041,120]
[354732171,1740649841107,-500.0,0.00049041,120]
[354732173,1740649841117,-500.0,0.00049041,120]
[354732175,1740649841126,-500.0,0.00049041,120]
[354732177,1740649841136,-500.0,0.00049041,120]
[354732179,1740649841145,-500.0,0.00049041,120]
[354732181,1740649841155,-2763.17,0.00049041,120]
[354732183,1740649841164,-506.23,0.00049041,120]
[354732185,1740649841174,-500.0,0.00049041,120]
[354732187,1740649841183,-500.0,0.00049041,120]
[354732189,1740649841193,-2068.77,0.00049041,120]
[354732191,1740649841202,-1028.38,0.00049041,120]
[354732193,1740649841211,-670.48,0.00049041,120]
[354732195,1740649841221,-999.77,0.00049041,120]
[354732197,1740649841230,-500.0,0.00049041,120]
[354732200,1740649841239,-558.29,0.00049041,120]
[354732201,1740649841250,-500.0,0.00049041,120]
[354732203,1740649841260,-500.0,0.00049041,120]
[354732205,1740649841269,-500.0,0.00049041,120]
[354732208,1740649841279,-500.0,0.00049041,120]
[354732210,1740649841288,-3230.55,0.00049041,6]
[354732212,1740649841297,-675.26,0.00049041,120]
[354732213,1740649841306,-500.0,0.00049041,120]
[354732216,1740649841315,-500.0,0.00049041,120]
[354732217,1740649841324,-4237.99,0.00049041,120]
[354732219,1740649841333,-500.0,0.00049041,120]
[354732221,1740649841342,-1161.12,0.00049041,120]
[354732223,1740649841352,-281.59,0.00049041,120]
[354732225,1740649841361,-4113.94,0.00049041,120]
[354732227,1740649841371,-24591.58,0.00049041,7]
[354732229,1740649841380,-500.0,0.00049041,120]
[354732231,1740649841389,-500.0,0.00049041,120]
[354732233,1740649841399,-527.58,0.00049041,120]
[354732235,1740649841408,-500.0,0.00049041,120]
[354732237,1740649841417,-1035.38,0.00049041,120]
[354732239,1740649841427,-2928.1,0.00049041,120]
[354732242,1740649841438,-1227.17,0.00049041,120]
[354732244,1740649841448,-500.0,0.0004907,7]
[354732245,1740649841457,-500.0,0.00049315,120]
[354732247,1740649841466,-355.0,0.00049315,120]
[354732249,1740649841475,-500.0,0.00049315,120]
[354732251,1740649841485,-500.0,0.00049315,120]
[354732253,1740649841494,-500.0,0.00049315,120]
[354732256,1740649841506,-500.0,0.00049315,120]
[354732258,1740649841515,-2763.17,0.00049315,120]
[354732260,1740649841525,-506.23,0.00049315,120]
[354732262,1740649841534,-438.44,0.00049315,120]
[354732264,1740649841543,-500.0,0.00049315,120]
[354732266,1740649841553,-2068.77,0.00049315,120]
[354732268,1740649841564,-1028.38,0.00049315,120]
[354732270,1740649841572,-670.48,0.00049315,120]
[354732272,1740649841582,-999.77,0.00049315,120]
[354732274,1740649841591,-578.25447946,0.00049315,120]
[354732276,1740649841601,-558.29,0.00049315,120]
[354732278,1740649841611,-500.0,0.00049315,120]
[354732280,1740649841621,-500.0,0.00049315,120]
[354732282,1740649841630,-500.0,0.00049315,120]
[354732284,1740649841639,-408.94,0.00049315,120]
[354732286,1740649841649,-3230.55,0.00049315,6]
[354732288,1740649841658,-675.26,0.00049315,120]
[354732290,1740649841667,-293.15,0.00049315,120]
[354732292,1740649841676,-500.0,0.00049315,120]
[354732294,1740649841686,-4237.99,0.00049315,120]
[354732296,1740649841694,-500.0,0.00049315,120]
[354732298,1740649841703,-1161.12,0.00049315,120]
[354732300,1740649841713,-4113.94,0.00049315,120]
[354732302,1740649841722,-24591.58,0.00049315,7]
[354732304,1740649841731,-500.0,0.00049315,120]
[354732306,1740649841740,-500.0,0.00049315,120]
[354732308,1740649841750,-527.58,0.00049315,120]
[354732310,1740649841760,-500.0,0.00049315,120]
[354732312,1740649841769,-1035.38,0.00049315,120]
[354732314,1740649841779,-2928.1,0.00049315,120]
[354732316,1740649841788,-285.65640075,0.00049315,120]
[354732318,1740649841797,-1227.17,0.00049315,120]
[354732320,1740649841806,-434.63,0.000494,30]
[354732323,1740649841816,-500.0,0.00049589,120]
[354732325,1740649841825,-500.0,0.00049589,120]
[354732327,1740649841835,-500.0,0.00049589,120]
[354732328,1740649841844,-500.0,0.00049589,120]
[354732330,1740649841854,-500.0,0.00049589,120]
[354732333,1740649841864,-2763.17,0.00049589,120]
[354732335,1740649841873,-506.23,0.00049589,120]
[354732337,1740649841883,-500.0,0.00049589,120]
[354732339,1740649841892,-2068.77,0.00049589,120]
[354732341,1740649841901,-1028.38,0.00049589,120]
[354732343,1740649841910,-670.48,0.00049589,120]
[354732345,1740649841919,-999.77,0.00049589,120]
[354732347,1740649841929,-558.29,0.00049589,120]
[354732349,1740649841938,-500.0,0.00049589,120]
[354732351,1740649841948,-500.0,0.00049589,120]
[354732353,1740649841957,-500.0,0.00049589,120]
[354732355,1740649841970,-3230.55,0.00049589,6]
[354732357,1740649841979,-675.26,0.00049589,120]
[354732359,1740649841988,-500.0,0.00049589,120]
[354732361,1740649841998,-4237.99,0.00049589,120]
[354732363,1740649842007,-500.0,0.00049589,120]
[354732365,1740649842017,-1161.12,0.00049589,120]
[354732367,1740649842026,-4113.94,0.00049589,120]
[354732369,1740649842035,-24591.58,0.00049589,7]
[354732371,1740649842047,-500.0,0.00049589,120]
[354732373,1740649842057,-500.0,0.00049589,120]
[354732375,1740649842066,-527.58,0.00049589,120]
[354732377,1740649842075,-500.0,0.00049589,120]
[354732379,1740649842085,-1035.38,0.00049589,120]
[354732381,1740649842094,-2928.1,0.00049589,120]
[354732383,1740649842104,-1227.17,0.00049589,120]
[354732385,1740649842114,-656.86,0.000496,30]
[354732387,1740649842123,-500.0,0.00049863,120]
[354732389,1740649842132,-500.0,0.00049863,120]
[354732391,1740649842142,-500.0,0.00049863,120]
[354732393,1740649842151,-500.0,0.00049863,120]
[354732395,1740649842161,-500.0,0.00049863,120]
[354732397,1740649842170,-2763.17,0.00049863,120]
[354732399,1740649842180,-506.23,0.00049863,120]
[354732401,1740649842190,-500.0,0.00049863,120]
[354732403,1740649842199,-2068.77,0.00049863,120]
[354732405,1740649842208,-1028.38,0.00049863,120]
[354732408,1740649842220,-670.48,0.00049863,120]
[354732410,1740649842230,-999.77,0.00049863,120]
[354732412,1740649842239,-558.29,0.00049863,120]
[354732414,1740649842248,-500.0,0.00049863,120]
[354732416,1740649842258,-276.79,0.00049863,120]
[354732418,1740649842267,-500.0,0.00049863,120]
[354732420,1740649842276,-3230.55,0.00049863,6]
[354732422,1740649842285,-675.26,0.00049863,120]
[354732424,1740649842295,-500.0,0.00049863,120]
[354732426,1740649842305,-4237.99,0.00049863,120]
[354732428,1740649842315,-500.0,0.00049863,120]
[354732429,1740649842324,-1161.12,0.00049863,120]
[354732444,1740649842447,-4113.94,0.00049863,120]
[354732446,1740649842458,-24591.58,0.00049863,7]
[354732448,1740649842467,-500.0,0.00049863,120]
[354732450,1740649842477,-500.0,0.00049863,120]
[354732452,1740649842486,-527.58,0.00049863,120]
[354732454,1740649842495,-177.94,0.00049863,120]
[354732456,1740649842505,-1035.38,0.00049863,120]
[354732458,1740649842514,-2928.1,0.00049863,120]
[354732460,1740649842524,-1227.17,0.00049863,120]
[354732462,1740649842534,-4740.58422482,0.0005,120]
[354732464,1740649842543,-500.0,0.00050136,120]
[354732466,1740649842552,-500.0,0.00050136,120]
[354732468,1740649842561,-500.0,0.00050136,120]
[354732470,1740649842570,-500.0,0.00050136,120]
[354732472,1740649842580,-500.0,0.00050136,120]
[354732475,1740649842589,-2763.17,0.00050136,120]
[354732478,1740649842599,-506.23,0.00050136,120]
[354732480,1740649842610,-500.0,0.00050136,120]
[354732482,1740649842619,-2068.77,0.00050136,120]
[354732484,1740649842629,-1028.38,0.00050136,120]
[354732486,1740649842639,-670.48,0.00050136,120]
[354732488,1740649842650,-999.77,0.00050136,120]
[354732490,1740649842660,-558.29,0.00050136,120]
[354732492,1740649842670,-500.0,0.00050136,120]
[354732494,1740649842680,-500.0,0.00050136,120]
[354732496,1740649842689,-3230.55,0.00050136,6]
[354732498,1740649842699,-675.26,0.00050136,120]
[354732500,1740649842709,-500.0,0.00050136,120]
[354732502,1740649842718,-4237.99,0.00050136,120]
[354732504,1740649842728,-500.0,0.00050136,120]
[354732506,1740649842737,-1161.12,0.00050136,120]
[354732508,1740649842746,-4113.94,0.00050136,120]
[354732510,1740649842756,-24591.58,0.00050136,7]
[354732512,1740649842765,-500.0,0.00050136,120]
[354732514,1740649842774,-500.0,0.00050136,120]
[354732516,1740649842784,-527.58,0.00050136,120]
[354732518,1740649842794,-1035.38,0.00050136,120]
[354732520,1740649842803,-2928.1,0.00050136,120]
[354732522,1740649842813,-1227.17,0.00050136,120]
[354732524,1740649842822,-150.0,0.0005041,120]
[354732526,1740649842832,-500.0,0.0005041,120]
[354732528,1740649842841,-500.0,0.0005041,120]
[354732530,1740649842851,-500.0,0.0005041,120]
[354732532,1740649842860,-249.919299,0.0005041,120]
[354732535,1740649842870,-500.0,0.0005041,120]
[354732538,1740649842879,-2763.17,0.0005041,120]
[354732540,1740649842889,-506.23,0.0005041,120]
[354732543,1740649842899,-500.0,0.0005041,120]
[354732546,1740649842908,-2068.77,0.0005041,120]
[354732548,1740649842918,-1028.38,0.0005041,120]
[354732550,1740649842928,-670.48,0.0005041,120]
[354732552,1740649842937,-999.77,0.0005041,120]
[354732554,1740649842948,-558.29,0.0005041,120]
[354732556,1740649842961,-500.0,0.0005041,120]
[354732559,1740649842971,-500.0,0.0005041,120]
[354732561,1740649842981,-3230.55,0.0005041,6]
[354732563,1740649842990,-675.26,0.0005041,120]
[354732565,1740649843002,-500.0,0.0005041,120]
[354732568,1740649843011,-4237.99,0.0005041,120]
[354732571,1740649843020,-500.0,0.0005041,120]
[354732573,1740649843031,-1161.12,0.0005041,120]
[354732575,1740649843040,-4113.94,0.0005041,120]
[354732577,1740649843049,-24591.58,0.0005041,7]
[354732579,1740649843059,-500.0,0.0005041,120]
[354732581,1740649843069,-500.0,0.0005041,120]
[354732583,1740649843078,-527.58,0.0005041,120]
[354732585,1740649843088,-1035.38,0.0005041,120]